bitfinex/quotes_ETHUSD_20251111
["timestamp","ask_amount","ask_price","bid_price","bid_amount"]
[1762844642747,0.002,3564.0,3563.9,2.80591486]
[1762844643084,0.002,3564.0,3563.9,3.25861486]
[1762844643518,0.4745,3564.0,3563.8,0.001]
[1762844643734,0.0041,3563.9,3563.8,2.80693144]
[1762844645127,0.002,3564.0,3563.9,2.80591486]
[1762844646315,0.4071,3564.0,3563.8,0.001]
[1762844646519,0.0047,3563.9,3563.8,0.001]
[1762844647420,0.6653,3563.9,3563.8,0.001]
[1762844651064,0.1917,3563.9,3563.8,2.8069936]
[1762844651262,0.6653,3563.9,3563.8,2.8069936]
[1762844652230,0.002,3564.0,3563.9,2.80591486]
[1762844652466,0.002,3564.0,3563.9,5.01072686]
[1762844652679,0.002,3564.0,3563.9,5.4246077]
[1762844652980,0.002,3564.0,3563.9,5.01072686]
[1762844653133,0.002,3564.0,3563.9,5.4246077]
[1762844653331,0.002,3564.0,3563.9,6.92126357]
[1762844653844,0.002,3564.0,3563.9,11.02453569]
[1762844654162,0.002,3564.0,3563.9,4.51832686]
[1762844654347,0.002,3564.0,3563.9,5.01072686]
[1762844655172,0.002,3564.0,3563.9,4.51832686]
[1762844655730,0.002,3564.0,3563.9,5.01072686]
[1762844657929,0.002,3564.0,3563.9,4.51832686]
[1762844658180,0.002,3564.0,3563.9,5.4311752]
[1762844658470,0.002,3564.0,3563.9,4.9784752]
[1762844658766,0.002,3564.0,3563.9,5.4311752]
[1762844659154,0.002,3564.0,3563.9,5.9235752]
[1762844660056,0.002,3564.0,3563.9,5.4311752]
[1762844660253,0.002,3564.0,3563.9,5.9235752]
[1762844662133,0.002,3564.0,3563.9,10.44072816]
[1762844662361,0.002,3564.0,3563.9,11.19017759]
[1762844664881,0.002,3564.0,3563.9,10.84623216]
[1762844665052,0.002,3564.0,3563.9,10.84723216]
[1762844666282,0.002,3564.0,3563.9,11.59672684]
[1762844666684,0.002,3564.0,3563.9,6.18166988]
[1762844666838,0.002,3564.0,3563.9,2.80691486]
[1762844666839,0.3926,3564.0,3563.9,2.80691486]
[1762844670373,0.8659,3564.0,3563.9,0.001]
[1762844670875,0.8659,3564.0,3563.9,2.80691486]
[1762844671686,0.8659,3564.0,3563.9,0.001]
[1762844671900,0.3926,3564.0,3563.9,0.001]
[1762844672120,0.3926,3564.0,3563.9,2.80691486]
[1762844673020,0.002,3564.0,3563.9,8.5106082]
[1762844673194,0.002,3564.0,3563.9,5.09812548]
[1762844673395,0.002,3564.0,3563.9,9.0035082]
[1762844673618,0.002,3564.0,3563.9,8.5106082]
[1762844673820,0.3926,3564.0,3563.9,7.47910958]
[1762844674118,0.3926,3564.0,3563.9,6.21939758]
[1762844674479,0.002,3564.0,3563.9,6.68949758]
[1762844675831,0.3926,3564.0,3563.9,2.80691486]
[1762844676135,0.8659,3564.0,3563.9,2.80691486]
[1762844676497,0.8659,3564.0,3563.9,0.001]
[1762844676829,1.5279,3564.0,3563.9,0.001]
[1762844677128,1.96125788,3564.0,3563.9,0.001]
[1762844677812,1.5279,3564.0,3563.9,0.001]
[1762844689304,4.33373613,3564.0,3563.9,0.001]
[1762844689538,1.5279,3564.0,3563.9,0.001]
[1762844692939,0.3926,3564.0,3563.9,0.001]
[1762844693248,1.5259,3564.0,3563.9,0.001]
[1762844693445,0.8659,3564.0,3563.9,0.001]
[1762844693648,1.0526,3564.0,3563.9,0.001]
[1762844693943,1.5259,3564.0,3563.9,0.001]
[1762844695058,0.8659,3564.0,3563.9,0.001]
[1762844695365,1.52477765,3564.0,3563.9,0.001]
[1762844698861,0.66087765,3564.0,3563.9,0.001]
[1762844699073,0.66087765,3564.0,3563.9,3.26791486]
[1762844699968,0.00087765,3564.0,3563.9,3.26791486]
[1762844700362,0.66087765,3564.0,3563.9,3.26791486]
[1762844701445,0.66087765,3564.0,3563.9,5.66731437]
[1762844701446,0.00087765,3564.0,3563.9,5.66731437]
[1762844701662,0.00087765,3564.0,3563.9,5.63925523]
[1762844702064,0.00087765,3564.0,3563.9,3.92124323]
[1762844702269,0.00087765,3564.0,3563.9,4.37954323]
[1762844705800,0.00087765,3564.0,3563.9,5.63925523]
[1762844706099,0.00087765,3564.0,3563.9,7.21213475]
[1762844707360,0.00087765,3564.0,3563.9,6.46264007]
[1762844707686,0.00087765,3564.0,3563.9,6.79425391]
[1762844708089,0.00087765,3564.0,3563.9,7.15890141]
[1762844708591,0.013,3564.9,3564.8,2.80520646]
[1762844708779,0.013,3564.9,3564.8,8.24861878]
[1762844708986,1e-08,3564.9,3564.8,9.35987711]
[1762844709215,1e-08,3564.9,3564.8,9.47218003]
[1762844709795,1e-08,3564.9,3564.8,8.49607311]
[1762844710026,1e-08,3564.9,3564.8,9.61437311]
[1762844711727,1e-08,3564.9,3564.8,10.01987711]
[1762844711931,1e-08,3564.9,3564.8,10.38452461]
[1762844712094,1e-08,3564.9,3564.8,10.01987711]
[1762844712296,1e-08,3564.9,3564.8,10.13218003]
[1762844713325,1e-08,3564.9,3564.8,9.47218003]
[1762844713532,1e-08,3564.9,3564.8,10.13218003]
[1762844714247,1e-08,3564.9,3564.8,12.96818003]
[1762844715328,1e-08,3564.9,3564.8,13.33282753]
[1762844716525,0.006,3565.6,3565.5,6.21375973]
[1762844716729,0.006,3565.6,3565.5,7.57661073]
[1762844717034,0.006,3565.6,3565.5,8.03491073]
[1762844719642,0.008,3565.6,3565.5,8.03491073]
[1762844720780,0.01,3565.9,3565.8,2.80441976]
[1762844720984,0.01,3565.9,3565.8,6.67452377]
[1762844721144,0.01,3565.9,3565.8,8.66296063]
[1762844722138,0.01,3565.9,3565.8,8.20466063]
[1762844722342,0.01,3565.9,3565.8,8.66296063]
[1762844723292,0.3619,3565.9,3565.8,2.80441976]
[1762844724747,0.01,3565.9,3565.8,2.80441976]
[1762844725059,0.01,3565.9,3565.8,3.26541976]
[1762844725961,0.01,3565.9,3565.8,3.71891976]
[1762844726368,0.01,3565.9,3565.8,4.11673393]
[1762844726578,0.01,3565.9,3565.8,5.55934009]
[1762844726880,0.01,3565.9,3565.8,5.10584009]
[1762844728977,0.01,3565.9,3565.8,8.82408904]
[1762844729174,0.3657,3565.9,3565.8,4.64484009]
[1762844729487,0.01,3565.9,3565.8,3.66793393]
[1762844730086,0.01,3565.9,3565.8,4.12143393]
[1762844730709,0.01,3565.9,3565.8,3.66793393]
[1762844731391,0.01,3565.9,3565.8,4.12143393]
[1762844731740,0.01,3565.9,3565.8,3.72361976]
[1762844732017,0.01,3565.9,3565.8,3.27011976]
[1762844732215,0.01,3565.9,3565.8,3.66793393]
[1762844734115,0.01,3565.9,3565.8,3.20223393]
[1762844734323,0.01,3565.9,3565.8,3.66793393]
[1762844734492,0.01,3565.9,3565.8,5.55006738]
[1762844734697,0.01,3565.9,3565.8,9.26831633]
[1762844734915,0.01,3565.9,3565.8,8.87050216]
[1762844735703,0.01,3565.9,3565.8,5.15225321]
[1762844736626,0.01,3565.9,3565.8,5.55006738]
[1762844738205,0.012,3565.9,3565.8,9.26831633]
[1762844738411,0.012,3565.9,3565.8,5.15225321]
[1762844738605,0.012,3565.9,3565.8,6.41196521]
[1762844738801,0.012,3565.9,3565.8,10.93353233]
[1762844739004,0.012,3565.9,3565.8,11.68055298]
[1762844739629,0.012,3565.9,3565.8,11.28273881]
[1762844739799,0.012,3565.9,3565.8,11.39500895]
[1762844740200,0.012,3565.9,3565.8,11.2067353]
[1762844740405,0.012,3565.9,3565.8,11.60454947]
[1762844740801,0.012,3565.9,3565.8,6.47623935]
[1762844741025,0.012,3565.9,3565.8,10.08221816]
[1762844741232,0.012,3565.9,3565.8,13.80046711]
[1762844741443,0.012,3565.9,3565.8,14.25396711]
[1762844741931,0.012,3565.9,3565.8,13.80046711]
[1762844742107,0.012,3565.9,3565.8,15.64527213]
[1762844742108,1e-08,3565.9,3565.8,15.64527213]
[1762844742306,1e-08,3565.9,3565.8,14.76404638]
[1762844742924,1e-08,3565.9,3565.8,17.60004638]
[1762844743440,0.01,3566.9,3566.8,7.78159445]
[1762844743441,1e-08,3566.9,3566.8,7.78159445]
[1762844743598,1e-08,3566.9,3566.8,4.84150495]
[1762844743794,0.34930001,3566.9,3566.8,4.0633455]
[1762844743998,1.01710001,3566.9,3566.8,4.0633455]
[1762844744243,0.34930001,3566.9,3566.8,7.78159445]
[1762844744807,0.82040001,3566.9,3566.8,7.78159445]
[1762844745047,0.34930001,3566.9,3566.8,7.78159445]
[1762844745410,1e-08,3566.9,3566.8,7.78159445]
[1762844745611,0.35050001,3566.9,3566.8,4.0633455]
[1762844745806,1.01710001,3566.9,3566.8,4.0633455]
[1762844746011,1.01710001,3566.9,3566.8,2.8036335]
[1762844747340,0.54720001,3566.9,3566.8,2.8036335]
[1762844747754,1.01710001,3566.9,3566.8,2.8036335]
[1762844750323,1.01710001,3566.9,3566.8,6.52188245]
[1762844752622,1e-08,3566.9,3566.8,3.2693335]
[1762844753958,1e-08,3566.9,3566.8,2.8036335]
[1762844754553,0.34930001,3566.9,3566.8,2.8036335]
[1762844754753,1.01710001,3566.9,3566.8,2.8036335]
[1762844755191,0.54600001,3566.9,3566.8,2.8036335]
[1762844755894,1.01710001,3566.9,3566.8,2.8036335]
[1762844756370,0.34930001,3566.9,3566.8,2.8036335]
[1762844756574,1e-08,3566.9,3566.8,2.8036335]
[1762844757082,0.34760001,3566.9,3566.8,2.8036335]
[1762844758198,0.00200001,3566.9,3566.8,3.2828335]
[1762844758892,0.00200001,3566.9,3566.8,2.8046335]
[1762844759087,0.00200001,3566.9,3566.8,3.2828335]
[1762844760461,0.47510001,3566.9,3566.8,2.8046335]
[1762844760661,0.84160001,3566.9,3566.8,2.8046335]
[1762844761522,0.47510001,3566.9,3566.8,2.8046335]
[1762844761682,1.02040001,3566.9,3566.8,2.8046335]
[1762844763195,1.02040001,3566.9,3566.8,0.001]
[1762844763412,1.02040001,3566.9,3566.8,2.8046335]
[1762844763591,1.02040001,3566.9,3566.8,0.001]
[1762844763781,1.18834001,3566.9,3566.8,0.001]
[1762844765220,7.71014386,3566.9,3566.8,0.001]
[1762844765802,8.96985586,3566.9,3566.8,0.001]
[1762844767861,2.80386933,3566.5,3566.4,0.001]
[1762844768002,4.02713343,3566.5,3566.4,0.001]
[1762844768220,4.51933343,3566.5,3566.4,0.001]
[1762844769609,6.27904543,3566.5,3566.4,0.001]
[1762844769799,2.80439638,3565.9,3565.5,0.001]
[1762844769997,0.523,3565.6,3565.5,0.001]
[1762844770427,1.0152,3565.6,3565.5,0.001]
[1762844770800,1.46306004,3565.6,3565.5,0.001]
[1762844771206,1.0152,3565.6,3565.5,0.001]
[1762844771618,3.81977706,3565.6,3565.5,0.001]
[1762844773514,5.57948906,3565.6,3565.5,0.001]
[1762844775129,2.933912,3565.6,3565.5,0.001]
[1762844775330,5.73848906,3565.6,3565.5,0.001]
[1762844775635,6.9646064,3565.6,3565.5,0.001]
[1762844776523,6.3056064,3565.6,3565.5,0.001]
[1762844776719,6.9646064,3565.6,3565.5,0.001]
[1762844777812,6.3056064,3565.6,3565.5,0.001]
[1762844778126,6.9646064,3565.6,3565.5,0.001]
[1762844779553,2.24131734,3565.6,3565.5,0.001]
[1762844779849,0.523,3565.6,3565.5,0.001]
[1762844780060,1.182,3565.6,3565.5,0.001]
[1762844780254,1.6742,3565.6,3565.5,0.001]
[1762844780767,1.182,3565.6,3565.5,0.001]
[1762844781109,0.9831,3565.6,3565.5,0.001]
[1762844781514,0.4922,3566.1,3565.5,0.4792]
[1762844781729,0.659,3566.0,3565.7,2.80447486]
[1762844781925,0.659,3566.0,3565.5,0.9643]
[1762844782110,0.659,3566.0,3565.8,2.80441434]
[1762844782315,0.4922,3566.3,3565.8,2.80441434]
[1762844782552,0.659,3566.2,3565.8,2.80441434]
[1762844782719,0.659,3566.1,3565.8,2.80441434]
[1762844783414,0.659,3566.1,3566.0,0.4782]
[1762844783617,0.327,3565.7,3565.5,0.001]
[1762844783816,0.659,3565.6,3565.5,2.80565572]
[1762844784044,0.6623,3565.6,3565.5,2.80565572]
[1762844784244,0.659,3565.6,3565.5,2.80565572]
[1762844784444,0.659,3565.6,3565.5,3.28385572]
[1762844784642,0.986,3565.6,3565.5,0.001]
[1762844784845,1.4766,3565.6,3565.5,0.001]
[1762844785045,2.0159749,3565.6,3565.5,0.001]
[1762844785245,4.82055196,3565.6,3565.5,0.001]
[1762844786357,6.08026396,3565.6,3565.5,0.001]
[1762844790150,5.42126396,3565.6,3565.5,0.001]
[1762844790463,6.08026396,3565.6,3565.5,0.001]
[1762844790761,5.42126396,3565.6,3565.5,0.001]
[1762844790960,1.3569749,3565.6,3565.5,0.001]
[1762844791165,2.0159749,3565.6,3565.5,0.001]
[1762844791350,0.8176,3565.6,3565.5,0.001]
[1762844791546,4.28117706,3565.6,3565.5,0.001]
[1762844792321,0.986,3565.6,3565.5,0.001]
[1762844793348,0.659,3565.6,3565.5,0.4849]
[1762844793968,0.659,3565.6,3565.5,0.001]
[1762844794341,2.80444077,3565.8,3565.5,0.001]
[1762844794549,0.659,3565.7,3565.5,0.001]
[1762844794966,0.8178,3565.6,3565.5,0.001]
[1762844798482,0.348,3565.6,3565.5,0.001]
[1762844799610,3.62237706,3565.6,3565.5,0.001]
[1762844799785,0.8178,3565.6,3565.5,0.001]
[1762844799976,1.4768,3565.6,3565.5,0.001]
[1762844800283,4.28137706,3565.6,3565.5,0.001]
[1762844800464,1.4768,3565.6,3565.5,0.001]
[1762844802789,1.007,3565.6,3565.5,0.001]
[1762844803252,0.659,3565.6,3565.5,0.4849]
[1762844803681,1.259712,3566.0,3565.5,0.4849]
[1762844803982,3.93627475,3565.9,3565.5,0.4849]
[1762844804516,0.47288013,3565.9,3565.5,0.4849]
[1762844804687,0.659,3565.8,3565.5,0.9622]
[1762844805587,0.659,3565.8,3565.5,0.4849]
[1762844806027,0.4862,3565.6,3565.5,0.001]
[1762844807386,3.62877706,3565.6,3565.5,0.001]
[1762844814896,4.88848906,3565.6,3565.5,0.001]
[1762844815235,5.73492096,3565.6,3565.5,0.001]
[1762844816030,6.23492096,3565.6,3565.5,0.001]
[1762844817248,5.73492096,3565.6,3565.5,0.001]
[1762844819439,0.8464319,3565.6,3565.5,0.001]
[1762844819601,0.659,3565.6,3565.5,0.001]
[1762844819795,3.46357706,3565.6,3565.5,0.001]
[1762844820131,1.027,3565.6,3565.5,0.001]
[1762844821425,3.83157706,3565.6,3565.5,0.001]
[1762844821831,1.027,3565.6,3565.5,0.001]
[1762844821999,1.58162384,3565.6,3565.5,0.001]
[1762844822198,0.11233667,3566.0,3565.5,0.9376]
[1762844822537,0.002,3566.4,3565.9,0.48]
[1762844822736,0.002,3566.4,3565.5,0.001]
[1762844822737,0.002,3566.4,3566.3,0.48]
[1762844822898,0.66,3566.4,3566.3,0.48]
[1762844823101,0.66,3566.4,3565.7,0.4566]
[1762844823102,1.4942,3566.4,3565.7,0.4566]
[1762844823295,4.3488684,3566.4,3565.7,3.26108976]
[1762844823635,2.8040296,3566.3,3565.7,0.4566]
[1762844823948,1.08979971,3566.4,3565.8,0.4566]
[1762844824248,1.08979971,3566.4,3565.8,3.26101475]
[1762844824547,2.34951171,3566.4,3565.9,0.4566]
[1762844824697,0.23495117,3566.3,3565.6,0.1906]
[1762844824894,0.66,3566.4,3565.8,2.80436776]
[1762844825094,0.66,3566.4,3565.8,2.80441251]
[1762844825351,0.66,3566.4,3565.9,2.80432444]
[1762844825556,0.66,3566.4,3565.8,2.80440153]
[1762844825853,0.66,3566.4,3565.6,0.6472]
[1762844826053,0.66,3566.4,3565.9,2.8042644]
[1762844826257,0.66,3566.4,3565.7,3.26109841]
[1762844826443,0.66,3566.4,3565.8,3.60625707]
[1762844826653,0.66,3566.4,3566.3,0.48]
[1762844827108,0.66,3566.4,3566.3,3.74062658]
[1762844829451,0.002,3566.4,3566.3,3.74062658]
[1762844829953,0.002,3566.4,3566.3,5.42004051]
[1762844830155,0.002,3566.4,3566.3,6.62130457]
[1762844830312,0.002,3566.4,3566.3,6.2296429]
[1762844831457,0.002,3566.4,3566.3,6.6351469]
[1762844832960,0.002,3566.4,3566.3,10.29847205]
[1762844833358,0.002,3566.4,3566.3,9.64047205]
[1762844834124,0.003,3567.4,3566.3,9.64047205]
[1762844834326,0.01,3567.9,3567.6,2.80300482]
[1762844834565,0.01,3567.9,3567.6,7.95354597]
[1762844834751,0.01,3567.9,3567.6,8.41014597]
[1762844834927,0.01,3567.9,3567.6,8.52237201]
[1762844835265,1e-08,3567.9,3567.8,3.28284769]
[1762844835430,1e-08,3567.9,3567.8,6.50388569]
[1762844835787,1e-08,3567.9,3567.8,6.96048569]
[1762844836349,1e-08,3567.9,3567.8,7.81431803]
[1762844836670,1e-08,3567.9,3567.8,10.77681884]
[1762844836858,1e-08,3567.9,3567.8,7.36598969]
[1762844837628,1e-08,3567.9,3567.8,6.70798969]
[1762844837867,1e-08,3567.9,3567.8,7.36598969]
[1762844839029,1e-08,3567.9,3567.8,6.30248569]
[1762844839627,1e-08,3567.9,3567.8,5.04277369]
[1762844841430,1e-08,3567.9,3567.8,5.43943536]
[1762844841757,1e-08,3567.9,3567.8,5.04277369]
[1762844846731,1e-08,3567.9,3567.8,6.30248569]
[1762844846933,0.49620001,3567.9,3567.8,4.10617369]
[1762844847194,1e-08,3567.9,3567.8,3.28674769]
[1762844847469,1e-08,3567.9,3567.8,2.80284769]
[1762844847670,1e-08,3567.9,3567.8,3.28674769]
[1762844848269,1e-08,3567.9,3567.8,2.80284769]
[1762844848647,1e-08,3567.9,3567.8,3.28674769]
[1762844849155,1e-08,3567.9,3567.8,3.28774769]
[1762844849558,0.00200001,3567.9,3567.8,3.28774769]
[1762844850074,0.00200001,3567.9,3567.8,2.80384769]
[1762844850236,0.00200001,3567.9,3567.8,3.28774769]
[1762844851056,0.41300001,3567.9,3567.8,2.80384769]
[1762844852584,0.59600001,3567.9,3567.8,0.001]
[1762844852764,0.00200001,3567.9,3567.8,2.80384769]
[1762844853164,0.00200001,3567.9,3567.8,0.001]
[1762844853374,0.40530001,3567.9,3567.8,2.80384769]
[1762844853575,0.40530001,3567.9,3567.8,0.001]
[1762844853976,0.87310001,3567.9,3567.8,2.80384769]
[1762844854175,0.40530001,3567.9,3567.8,2.80384769]
[1762844854351,0.00200001,3567.9,3567.8,2.80384769]
[1762844854682,0.40530001,3567.9,3567.8,2.80384769]
[1762844856286,0.87310001,3567.9,3567.8,2.80384769]
[1762844856588,1.06290001,3567.9,3567.8,0.001]
[1762844856974,1.44945117,3567.9,3567.8,0.001]
[1762844857176,1.06290001,3567.9,3567.8,0.001]
[1762844857886,1.06290001,3567.9,3567.8,3.76744769]
[1762844857887,0.00200001,3567.9,3567.8,3.76744769]
[1762844858862,0.00200001,3567.9,3567.8,7.48148324]
[1762844860328,0.00200001,3567.9,3567.8,3.76744769]
[1762844860626,0.00200001,3567.9,3567.8,7.48148324]
[1762844860834,0.00200001,3567.9,3567.8,8.50992239]
[1762844863422,0.00200001,3567.9,3567.8,9.76963439]
[1762844865028,0.00200001,3567.9,3567.8,9.28993439]
[1762844865395,0.00200001,3567.9,3567.8,7.00178324]
[1762844867606,0.49820001,3567.9,3567.8,6.51788324]
[1762844868238,0.00200001,3567.9,3567.8,7.00178324]
[1762844868835,0.00200001,3567.9,3567.8,7.48148324]
[1762844869402,0.00200001,3567.9,3567.8,7.00178324]
[1762844869606,0.00200001,3567.9,3567.8,8.03022238]
[1762844870503,0.49820001,3567.9,3567.8,7.54632238]
[1762844870699,0.49820001,3567.9,3567.8,6.51788324]
[1762844871340,0.00200001,3567.9,3567.8,6.51788324]
[1762844871537,0.00200001,3567.9,3567.8,7.00178324]
[1762844871938,0.00200001,3567.9,3567.8,3.28774769]
[1762844872140,0.00200001,3567.9,3567.8,7.00178324]
[1762844872445,0.00200001,3567.9,3567.8,9.11695594]
[1762844873010,0.00200001,3567.9,3567.8,8.63725594]
[1762844873210,1.06290001,3567.9,3567.8,0.001]
[1762844873739,0.59510001,3567.9,3567.8,0.001]
[1762844873941,1.06290001,3567.9,3567.8,0.001]
[1762844876214,1.06290001,3567.9,3567.8,2.80384769]
[1762844876409,1.06290001,3567.9,3567.8,0.001]
[1762844876610,1.23489001,3567.9,3567.8,0.001]
[1762844880941,4.03765914,3567.9,3567.8,0.001]
[1762844891455,5.79737114,3567.9,3567.8,0.001]
[1762844897298,4.68495914,3567.9,3567.8,0.001]
[1762844898085,5.18495914,3567.9,3567.8,0.001]
[1762844906792,5.59046314,3567.9,3567.8,0.001]
[1762844908494,10.57391069,3567.9,3567.8,0.001]
[1762844910274,10.68619407,3567.9,3567.8,0.001]
[1762844911810,5.81515852,3567.9,3567.8,0.001]
[1762844912013,6.35887514,3567.9,3567.8,0.001]
[1762844912899,5.29577114,3567.9,3567.8,0.001]
[1762844914596,5.48947114,3567.9,3567.8,0.001]
[1762844914915,4.89247114,3567.9,3567.8,0.001]
[1762844915088,9.86033744,3567.9,3567.8,0.001]
[1762844915288,10.68959349,3567.9,3567.8,0.001]
[1762844915607,10.80189011,3567.9,3567.8,0.001]
[1762844916221,10.37813806,3567.9,3567.8,0.001]
[1762844918236,10.37813806,3567.9,3567.4,0.001]
[1762844918237,3.70858739,3567.5,3567.4,0.001]
[1762844918541,9.81289446,3567.5,3567.4,0.001]
[1762844918721,10.30529446,3567.5,3567.4,0.001]
[1762844919039,10.45019446,3567.5,3567.4,0.001]
[1762844919244,3.20890171,3567.1,3567.0,0.001]
[1762844919548,9.40258001,3567.1,3567.0,0.001]
[1762844919707,11.44512444,3567.1,3567.0,0.001]
[1762844923616,3.20921611,3566.7,3566.6,0.001]
[1762844923817,9.04009441,3566.7,3566.6,0.001]
[1762844924022,9.53249441,3566.7,3566.6,0.001]
[1762844924331,11.17816187,3566.7,3566.6,0.001]
[1762844926856,8.37610888,3566.3,3566.2,0.001]
[1762844927023,9.37800888,3566.3,3566.2,0.001]
[1762844927217,9.87040888,3566.3,3566.2,0.001]
[1762844927421,11.40169201,3566.3,3566.2,0.001]
[1762844929632,11.82544406,3566.3,3566.2,0.001]
[1762844930255,3.20976647,3566.0,3565.9,0.001]
[1762844930465,9.04404477,3566.0,3565.9,0.001]
[1762844930651,9.53644477,3566.0,3565.9,0.001]
[1762844930957,11.11666446,3566.0,3565.9,0.001]
[1762844934143,3.21008106,3565.6,3565.5,0.001]
[1762844934466,9.37525936,3565.6,3565.5,0.001]
[1762844934767,12.82465936,3565.6,3565.5,0.001]
[1762844934932,9.98003295,3565.6,3565.5,0.001]
[1762844935131,11.2584846,3565.6,3565.5,0.001]
[1762844936752,3.21071046,3564.8,3564.7,0.001]
[1762844937063,9.49288876,3564.8,3564.7,0.001]
[1762844937464,9.96378876,3564.8,3564.7,0.001]
[1762844937769,10.33768876,3564.8,3564.7,0.001]
[1762844938066,11.67150901,3564.8,3564.7,0.001]
[1762844939978,11.29760901,3564.8,3564.7,0.001]
[1762844940177,11.67150901,3564.8,3564.7,0.001]
[1762844940880,11.29760901,3564.8,3564.7,0.001]
[1762844941067,10.18200901,3564.8,3564.7,0.476]
[1762844941274,10.83800901,3564.8,3564.7,0.9469]
[1762844941678,10.83800901,3564.8,3564.7,0.476]
[1762844941987,10.83800901,3564.8,3564.7,0.9469]
[1762844941988,8.51679301,3564.8,3564.7,0.9469]
[1762844942154,10.43250501,3564.8,3564.7,0.476]
[1762844942515,0.656,3564.8,3564.7,0.9469]
[1762844943055,0.976,3565.5,3564.7,0.9469]
[1762844943255,3.78065572,3565.5,3565.4,0.6674]
[1762844943458,3.78065572,3565.5,3564.8,0.4709]
[1762844943459,2.80512777,3564.9,3564.8,0.4709]
[1762844943682,4.02213953,3564.9,3564.8,0.4709]
[1762844943885,2.47672376,3564.9,3564.8,0.9459]
[1762844944087,5.22083977,3564.9,3564.8,0.475]
[1762844944586,5.22083977,3564.9,3564.8,0.9459]
[1762844948231,1.915712,3564.9,3564.8,0.9459]
[1762844948377,3.46112777,3564.9,3564.8,0.9459]
[1762844950338,1.915712,3564.9,3564.8,0.9459]
[1762844950627,4.72083977,3564.9,3564.8,0.9459]
[1762844950778,5.22083977,3564.9,3564.8,0.9459]
[1762844951485,4.56491846,3564.8,3564.7,0.001]
[1762844951685,4.56861846,3564.8,3564.7,0.001]
[1762844951899,4.56491846,3564.8,3564.7,0.476]
[1762844952220,4.56491846,3564.8,3564.7,0.001]
[1762844952221,8.83688876,3564.8,3564.7,0.001]
[1762844952619,9.31288876,3564.8,3564.7,0.001]
[1762844952798,6.88396882,3564.8,3564.7,0.476]
[1762844954097,6.88396882,3564.8,3564.7,0.001]
[1762844954297,7.25936882,3564.8,3564.7,0.001]
[1762844955303,6.88396882,3564.8,3564.7,0.001]
[1762844955503,6.88396882,3564.8,3564.7,0.476]
[1762844955696,6.15846482,3564.8,3564.7,0.9469]
[1762844955899,4.72091846,3564.8,3564.7,0.9469]
[1762844956325,4.72091846,3564.8,3564.7,0.71762023]
[1762844956745,4.06491846,3564.8,3564.7,0.71762023]
[1762844956900,4.72091846,3564.8,3564.7,0.71762023]
[1762844957403,1.915712,3564.8,3564.7,0.71762023]
[1762844957603,4.72091846,3564.8,3564.7,0.71762023]
[1762844958303,3.71078915,3564.7,3564.6,0.001]
[1762844958535,3.85718915,3564.7,3564.6,0.001]
[1762844958832,5.57490115,3564.7,3564.6,0.001]
[1762844959424,5.11690115,3564.7,3564.6,0.001]
[1762844959614,6.78872589,3564.7,3564.6,0.001]
[1762844960437,10.19559219,3564.7,3564.6,0.001]
[1762844960639,10.65359219,3564.7,3564.6,0.001]
[1762844965956,10.64889219,3564.7,3564.6,0.001]
[1762844969273,10.64889219,3564.7,3563.9,0.001]
[1762844969274,3.71134013,3564.0,3563.9,0.001]
[1762844969474,9.18351843,3564.0,3563.9,0.001]
[1762844969667,9.63681843,3564.0,3563.9,0.001]
[1762844969861,9.74925204,3564.0,3563.9,0.001]
[1762844976298,4.97113086,3563.9,3563.8,0.001]
[1762844976498,7.60792194,3563.9,3563.8,0.001]
[1762844976877,15.0630783,3563.9,3563.8,0.001]
[1762844977602,5.13264583,3563.5,3563.4,1e-08]
[1762844977789,13.24380219,3563.5,3563.4,1e-08]
[1762844978107,14.90142189,3563.5,3563.4,1e-08]
[1762844978664,15.35912189,3563.5,3563.4,1e-08]
[1762844979312,5.42668209,3563.2,3563.1,1e-08]
[1762844979517,3.21275794,3562.2,3561.6,0.001]
[1762844979702,13.90130209,3562.2,3561.6,0.001]
[1762844979912,14.01378534,3562.2,3561.6,0.001]
[1762844981206,14.46708534,3562.2,3561.6,0.001]
[1762844982606,14.46708534,3562.2,3562.1,1e-08]
[1762844983829,12.42802039,3561.7,3561.6,0.001]
[1762844984029,9.35544221,3561.7,3561.6,0.001]
[1762844984238,13.08302039,3561.7,3561.6,0.48]
[1762844984398,13.54172039,3561.7,3561.6,0.001]
[1762844984597,14.03912039,3561.7,3561.6,0.001]
[1762844984930,16.0141789,3561.7,3561.6,0.001]
[1762844985295,16.4674789,3561.7,3561.6,0.001]
[1762844986190,16.0141789,3561.7,3561.6,0.001]
[1762844988301,16.4674789,3561.7,3561.6,0.001]
[1762844990855,16.4674789,3561.7,3561.6,0.48]
[1762844990856,11.78920072,3561.7,3561.6,0.48]
[1762844993335,11.78920072,3561.7,3561.6,0.001]
[1762844993530,12.28660072,3561.7,3561.6,0.001]
[1762844994965,16.4674789,3561.7,3561.6,0.001]
[1762844995123,16.0141789,3561.7,3561.6,0.001]
[1762844995946,16.4950789,3561.7,3561.6,0.001]
[1762845003466,3.71338853,3561.4,3561.3,0.001]
[1762845003665,13.34685689,3561.4,3561.3,0.001]
[1762845003865,13.82775689,3561.4,3561.3,0.001]
[1762845004382,13.94026893,3561.4,3561.3,0.001]
[1762845005579,2.80804223,3561.2,3561.1,1e-08]
[1762845005750,12.91661459,3561.2,3561.1,1e-08]
[1762845005945,13.39751459,3561.2,3561.1,1e-08]
[1762845006170,13.5100434,3561.2,3561.1,1e-08]
[1762845007163,3.21370394,3561.0,3560.3,0.001]
[1762845007362,0.405504,3560.5,3560.3,0.001]
[1762845007682,13.08404554,3560.4,3560.3,0.4558]